Cogmind - Beta 9.6 @@@ ROGUE MODE // 2020.04.26 @ 21:39:52 Player: alice_fexa Result: Heading to fleet! Performance ------------- Evolutions (9) 4500 Regions Visited (33) 6600 Robots Destroyed (212) 1060 Value Destroyed (5873) 5873 Prototype IDs (129) 2580 Alien Tech Used (4) 800 Bonus (7229) 7229 TOTAL SCORE: 28642 Bonus ------- High Alert Combat Kills 28 Follower Combat Kills 301 Aligned with FarCom 300 Met Data Miner 300 Met Imprinter 300 Used Core Reset Matrix 3000 Win 3000 Cogmind --------- Core Integrity 1578/1600 Matter 280/300 Energy 158/160 System Corruption 0% Temperature Cool (2) Movement Flying (19) Location To Fleet Rendezvous Parts ------- > --- POWER (2) -------- Mini Fusion Reactor Mini Fusion Reactor > --- PROPULSION (4) --- Experimental Cesium-ion Thruster Experimental Cesium-ion Thruster Improved Diametric Drive Experimental Q-thruster > --- UTILITY (18) ----- Medium Storage Unit Medium Storage Unit Large Storage Unit Dimensional Manipulator Dimensional Manipulator Experimental Sensor Array Experimental Signal Interpreter Advanced Melee Analysis Suite Femtoactuators Experimental Utility Shielding Advanced Hacking Suite Advanced Hacking Suite System Mapper System Mapper Deep Network Scanner Ghost Barrier Quantum Router > --- WEAPON (2) ------- Mini Smartbomb Launcher Plasma Lance > --- INVENTORY (18) --- Compact Particle Reactor Improved Q-thruster Improved Fusion Compressor Improved Fusion Compressor Superbattery (2000) Inertial Stasis Machine Experimental Target Analyzer Advanced Transmission Jammer Advanced Powered Armor Advanced Force Field Transdimensional Reconstructor Subatomic Replicator Nova Cannon Field Lobotomy Kit Sigix Broadsword Plasma Lance Peak State ------------ > --- POWER ------------ Mini Fusion Reactor Mini Fusion Reactor > --- PROPULSION ------- Experimental Cesium-ion Thruster Experimental Cesium-ion Thruster Improved Diametric Drive Experimental Q-thruster > --- UTILITY ---------- Improved Fusion Compressor Medium Storage Unit Medium Storage Unit Large Storage Unit Dimensional Manipulator Dimensional Manipulator Experimental Sensor Array Experimental Signal Interpreter Advanced Melee Analysis Suite Femtoactuators Experimental Utility Shielding Advanced Hacking Suite Advanced Hacking Suite System Mapper System Mapper Deep Network Scanner Ghost Barrier Quantum Router > --- WEAPON ----------- Mini Smartbomb Launcher Plasma Lance > --- INVENTORY -------- Compact Particle Reactor Improved Q-thruster Improved Fusion Compressor Superbattery Inertial Stasis Machine Experimental Target Analyzer Advanced Transmission Jammer Advanced Powered Armor Advanced Force Field Transdimensional Reconstructor Core Reset Matrix Subatomic Replicator Nova Cannon Field Lobotomy Kit Sigix Broadsword Plasma Lance [Rating: 204] Favorites ----------- Power Mini Fusion Reactor Engine Improved Ion Engine Power Core Light Nuclear Core Reactor Mini Fusion Reactor Propulsion Experimental Cesium-ion Thruster Treads Light Treads Wheel Wheel Flight Unit Experimental Cesium-ion Thruster Utility Advanced Hacking Suite Device Experimental Sensor Array Storage Medium Storage Unit Processor Experimental Signal Interpreter Hackware Advanced Hacking Suite Protection Experimental Utility Shielding Artifact Matter Drive Weapon Plasma Sword Energy Gun Improved EM Shotgun Energy Cannon Advanced Beam Cannon Ballistic Gun Improved Assault Rifle Launcher Mini Smartbomb Launcher Special Weapon Mining Laser Slashing Weapon Plasma Sword Piercing Weapon Plasma Lance Special Melee Weapon Improved Datajack Build | -11 -10 -10 -9 -9 -9 -8 -8 -7 -7 -7 -7 -6 -6 -6 -6 -6 -5 -5 -5 -5 -5 -4 -4 -4 -4 -4 -4 -4 -3 -3 -3 -2 -1 ------- Run | Scr Mat Min Mat Min Exi Min Mat Fac Low Low Dat Pro Fac Low Low Zio Pro Fac Upp Upp War Pro Fac Was Fac Upp Upp Zhi Pro Res Qua Res Acc Slots Evolved 18 | . . . 2 . . . 2 2 . . . . 2 . . . . 2 . . . . 2 . . . . . . 2 . 2 2 Power 1 | . . . . . . . . . . . . . . . . . . . . . . . . . . . . . . . . . 1 Propulsion 1 | . . . . . . . . . . . . . . . . . . . . . . . . . . . . . . . . . 1 Utility 16 | . . . 2 . . . 2 2 . . . . 2 . . . . 2 . . . . 2 . . . . . . 2 . 2 . Weapon . | . . . . . . . . . . . . . . . . . . . . . . . . . . . . . . . . . . Parts Attached 249 | 6 8 . 33 2 2 8 26 33 . 2 5 2 17 . . 3 3 15 5 1 7 . 11 . 18 . 1 3 . 10 6 16 6 Power 26 | 1 2 . 3 1 . 1 5 4 . . . . 2 . . . . 3 . . . . . . 2 . . . . 1 . . 1 Engine 8 | 1 2 . 3 1 . . . 1 . . . . . . . . . . . . . . . . . . . . . . . . . Core 11 | . . . . . . 1 5 3 . . . . 2 . . . . . . . . . . . . . . . . . . . . Reactor 7 | . . . . . . . . . . . . . . . . . . 3 . . . . . . 2 . . . . 1 . . 1 Propulsion 48 | 2 1 . 8 . 1 2 7 7 . . . 1 . . . . . 4 . . . . 3 . 7 . . . . 2 . 1 2 Treads 10 | 1 . . 6 . . 1 2 . . . . . . . . . . . . . . . . . . . . . . . . . . Leg . | . . . . . . . . . . . . . . . . . . . . . . . . . . . . . . . . . . Wheel 13 | 1 1 . 2 . 1 1 5 2 . . . . . . . . . . . . . . . . . . . . . . . . . Hover . | . . . . . . . . . . . . . . . . . . . . . . . . . . . . . . . . . . Flight 25 | . . . . . . . . 5 . . . 1 . . . . . 4 . . . . 3 . 7 . . . . 2 . 1 2 Utility 110 | 1 4 . 8 1 . 1 6 9 . 1 3 1 12 . . 3 . 5 5 1 7 . 4 . 6 . . 1 . 7 6 15 3 Device 48 | . . . 1 1 . 1 3 3 . . . 1 5 . . 1 . . 3 . 3 . 2 . 5 . . 1 . 3 4 8 3 Storage 23 | 1 4 . 2 . . . . 2 . . . . 1 . . . . 1 . . 1 . . . 1 . . . . 3 1 6 . Processor 6 | . . . 1 . . . 1 . . . . . 1 . . . . 1 1 . . . 1 . . . . . . . . . . Hackware 15 | . . . . . . . 1 2 . 1 3 . 2 . . . . 2 . 1 1 . . . . . . . . 1 . 1 . Protection 17 | . . . 4 . . . 1 2 . . . . 3 . . 2 . 1 1 . 2 . 1 . . . . . . . . . . Artifact 1 | . . . . . . . . . . . . . . . . . . . . . . . . . . . . . . . 1 . . Weapon 65 | 2 1 . 14 . 1 4 8 13 . 1 2 . 3 . . . 3 3 . . . . 4 . 3 . 1 2 . . . . . Energy Gun 7 | . . . . . . 1 2 4 . . . . . . . . . . . . . . . . . . . . . . . . . Energy Cannon 4 | . . . 3 . . 1 . . . . . . . . . . . . . . . . . . . . . . . . . . . Ballistic Gun 19 | 2 1 . 8 . 1 . 3 4 . . . . . . . . . . . . . . . . . . . . . . . . . Ballistic Cannon . | . . . . . . . . . . . . . . . . . . . . . . . . . . . . . . . . . . Launcher 9 | . . . 2 . . 1 . 1 . . . . . . . . 1 1 . . . . 1 . . . 1 1 . . . . . Special Weapon 2 | . . . 1 . . 1 . . . . . . . . . . . . . . . . . . . . . . . . . . . Impact Weapon . | . . . . . . . . . . . . . . . . . . . . . . . . . . . . . . . . . . Slashing Weapon 11 | . . . . . . . 3 2 . . . . 1 . . . 1 2 . . . . 2 . . . . . . . . . . Piercing Weapon 5 | . . . . . . . . 2 . 1 1 . . . . . . . . . . . . . 1 . . . . . . . . Special Melee Weapon 8 | . . . . . . . . . . . 1 . 2 . . . 1 . . . . . 1 . 2 . . 1 . . . . . Unidentified Prototypes 17 | . . . 2 . . . . 3 . . . 1 1 . . . . . . . 4 . . . 2 . . 1 . 1 1 1 . Parts Lost 15 | . 2 . 1 . . 2 8 . 1 . . . . . . . . . . . . . . . . . . . . . . . 1 Power 3 | . 1 . . . . . 2 . . . . . . . . . . . . . . . . . . . . . . . . . . Propulsion 6 | . 1 . . . . 1 3 . . . . . . . . . . . . . . . . . . . . . . . . . 1 Utility 3 | . . . . . . . 2 . 1 . . . . . . . . . . . . . . . . . . . . . . . . Weapon 3 | . . . 1 . . 1 1 . . . . . . . . . . . . . . . . . . . . . . . . . . Highest Loss Streak 4 | . 2 . 1 . . 2 4 . 1 . . . . . . . . . . . . . . . . . . . . . . . 1 Average Slot Usage (%) 99 | . 98 100 100 100 100 99 98 99 98 99 97 100 99 100 100 99 99 99 100 100 99 100 98 100 99 100 100 99 100 99 99 99 97 Engine 3 | . 13 14 11 11 11 8 . 2 7 7 7 7 1 . . . . . . . . . . . . . . . . . . . . Core 1 | . . . . . . 2 8 4 . . . . 4 6 6 6 6 . . . . . . . . . . . . . . . . Reactor 1 | . . . . . . . . . . . . . . . . . . 4 5 5 5 5 5 5 5 5 5 5 5 4 4 4 7 Treads 4 | . 14 14 11 11 11 11 10 3 . . . . . . . . . . . . . . . . . . . . . . . . . Wheel 4 | . 14 14 11 11 11 10 7 3 . . . . . . . . . . . . . . . . . . . . . . . . . Flight 9 | . . . . . . . . 8 15 15 15 19 18 18 18 18 18 15 16 16 16 16 14 15 14 15 15 15 15 12 13 12 14 Device 12 | . . . 9 11 11 11 14 15 15 15 15 14 12 12 12 12 12 11 11 11 11 11 14 15 14 15 15 14 15 17 17 19 17 Storage 12 | . 27 28 22 22 22 22 18 14 7 7 7 7 6 6 6 6 6 5 5 5 5 5 5 5 5 5 5 5 5 8 9 12 11 Processor 6 | . . . 1 . . . 7 7 7 7 7 7 6 6 6 6 6 11 7 5 5 5 9 10 10 10 10 10 10 9 9 8 7 Hackware 19 | . . . . . . . 5 19 21 22 20 21 30 31 31 31 31 32 33 33 38 38 35 35 35 35 35 35 35 31 30 28 26 Protection 6 | . . . 11 11 11 11 8 3 7 7 7 7 5 6 6 5 6 4 8 10 4 5 5 5 5 5 5 5 5 4 4 4 3 Energy Gun 1 | . . . . . . 2 7 3 . . . . . . . . . . . . . . . . . . . . . . . . . Energy Cannon 1 | . . . 9 11 11 6 . . . . . . . . . . . . . . . . . . . . . . . . . . . Ballistic Gun 5 | . 28 28 12 11 11 11 8 1 . . . . . . . . . . . . . . . . . . . . . . . . . Slashing Weapon 2 | . . . . . . . 2 4 7 4 . . 5 6 6 6 6 4 5 5 5 5 4 5 2 . . . . . . . . Piercing Weapon 1 | . . . . . . . . 4 7 9 15 14 3 . . . . . . . . . . . 2 5 5 5 5 4 4 4 3 Special Melee Weapon 1 | . . . . . . . . . . . . . 3 6 6 6 5 5 5 5 5 5 4 5 5 5 1 3 . . . . . Naked Turns . | . . . . . . . . . . . . . . . . . . . . . . . . . . . . . . . . . . Heaviest Build 93 | 13 41 41 88 88 87 87 93 83 17 17 17 17 22 17 17 18 18 23 26 26 22 22 26 25 26 22 25 25 25 35 46 54 61 Greatest Support 72 | 10 10 10 20 10 10 20 43 18 18 18 18 18 24 18 18 18 18 31 26 26 26 26 26 26 33 30 30 37 37 39 46 62 72 Greatest Overweight (x) 9 | 1 4 4 8 8 8 8 9 8 . . . . . . . . . . . . . . . . 1 . . . . . . . . Average Overweight (x) . | . 2 4 5 8 8 7 6 1 . . . . . . . . . . . . . . . . . . . . . . . . . Largest Inventory Capacity 22 | 6 16 16 20 20 20 20 20 22 6 6 6 6 6 6 6 6 6 8 8 8 8 8 8 8 8 8 8 8 8 12 16 22 18 Average Capacity 12 | 5 11 16 18 20 20 20 20 13 6 6 6 6 6 6 6 6 6 7 8 8 8 8 8 8 8 8 8 8 8 11 12 17 18 Most Carried 22 | 4 16 16 20 20 20 20 20 22 6 6 6 6 6 6 6 6 6 8 8 8 8 8 8 8 8 8 8 8 8 12 16 18 18 Average Carried 12 | 1 10 15 18 19 19 19 19 12 6 5 5 5 5 6 6 6 5 6 8 8 8 8 7 8 7 8 8 7 8 10 12 17 17 Final Capacity 20 | 6 16 16 20 20 20 20 20 6 6 6 6 6 6 6 6 6 6 8 8 8 8 8 8 8 8 8 8 8 8 12 16 18 18 Final Carried 20 | 4 16 16 20 20 20 20 20 6 6 6 6 5 6 6 6 6 6 8 8 8 8 8 8 8 8 8 8 8 8 12 16 18 17 Class Distribution -------------------- 53% | Wizard-Sprinter 16% | Mutant 13% | Hauler-Mutant 10% | Scavenger-Mutant 5% | Hacker-Sprinter Dominant Class ---------------- Mutant | -10/Materials Mutant | -10/Mines Mutant | -9/Materials Hauler-Mutant | -9/Mines Hauler-Mutant | -9/Exiles Hauler-Mutant | -8/Mines Scavenger-Mutant | -8/Materials Hacker-Sprinter | -7/Factory Hacker-Sprinter | -7/Lower Caves Hacker-Sprinter | -7/Lower Caves Wizard-Sprinter | -7/Data Miner Wizard-Sprinter | -6/Proximity Caves Wizard-Sprinter | -6/Factory Wizard-Sprinter | -6/Lower Caves Wizard-Sprinter | -6/Lower Caves Wizard-Sprinter | -6/Zion Wizard-Sprinter | -5/Proximity Caves Wizard-Sprinter | -5/Factory Wizard-Sprinter | -5/Upper Caves Wizard-Sprinter | -5/Upper Caves Wizard-Sprinter | -5/Warlord Wizard-Sprinter | -4/Proximity Caves Wizard-Sprinter | -4/Factory Wizard-Sprinter | -4/Waste Wizard-Sprinter | -4/Factory Wizard-Sprinter | -4/Upper Caves Wizard-Sprinter | -4/Upper Caves Wizard-Sprinter | -4/Zhirov Wizard-Sprinter | -3/Proximity Caves Wizard-Sprinter | -3/Research Wizard-Sprinter | -3/Quarantine Wizard-Sprinter | -2/Research Wizard-Sprinter | -1/Access Resources | -11 -10 -10 -9 -9 -9 -8 -8 -7 -7 -7 -7 -6 -6 -6 -6 -6 -5 -5 -5 -5 -5 -4 -4 -4 -4 -4 -4 -4 -3 -3 -3 -2 -1 ----------- Run | Scr Mat Min Mat Min Exi Min Mat Fac Low Low Dat Pro Fac Low Low Zio Pro Fac Upp Upp War Pro Fac Was Fac Upp Upp Zhi Pro Res Qua Res Acc Matter Collected 4707 | 243 397 32 667 47 . 136 481 430 15 15 . 38 250 . . 20 45 170 165 10 . 29 169 43 181 . 130 40 . 100 166 510 178 Remotely . | . . . . . . . . . . . . . . . . . . . . . . . . . . . . . . . . . . Salvage Created 9525 | . 522 16 1396 152 . 236 1222 477 14 . 27 . 917 70 . . 100 575 191 . . . 165 . 494 66 109 64 . 704 511 883 614 Parts 478 | . 25 4 96 8 . 14 76 20 . . 4 . 32 . . . 5 26 1 . . . 6 . 23 . 3 . . 25 25 45 40 Haulers Intercepted 21 | . 2 . 6 . . . 1 1 . . . . 4 . . . . 2 . . . . 1 . 2 . . . . . . 2 . Recyclers Shooed 10 | . 2 . . . . . . 2 . . . . 2 . . . . 1 . . . . . . . . . . . 1 1 1 . Parts Field Recycled . | . . . . . . . . . . . . . . . . . . . . . . . . . . . . . . . . . . Retrieved Matter . | . . . . . . . . . . . . . . . . . . . . . . . . . . . . . . . . . . Parts Self-Destructed 3 | . . . . . . . . . . 2 . . . . . . 1 . . . . . . . . . . . . . . . . Prevented 2 | . . . . . . . . . . . . . . . . . . . . . . . . . . . 2 . . . . . . Kills | -11 -10 -10 -9 -9 -9 -8 -8 -7 -7 -7 -7 -6 -6 -6 -6 -6 -5 -5 -5 -5 -5 -4 -4 -4 -4 -4 -4 -4 -3 -3 -3 -2 -1 ------- Run | Scr Mat Min Mat Min Exi Min Mat Fac Low Low Dat Pro Fac Low Low Zio Pro Fac Upp Upp War Pro Fac Was Fac Upp Upp Zhi Pro Res Qua Res Acc Combat Hostiles Destroyed 96 | . 6 1 27 6 . 7 16 6 . . . . . . . . 6 4 . . . . 4 . . . 1 . . . . 4 8 Melee 9 | . . . . . . . . 1 . . . . . . . . 2 . . . . . . . . . . . . . . 1 5 Guns 40 | . 6 1 12 2 . 2 13 4 . . . . . . . . . . . . . . . . . . . . . . . . . Cannons 11 | . . . 8 2 . 1 . . . . . . . . . . . . . . . . . . . . . . . . . . . AOE 36 | . . . 7 2 . 4 3 1 . . . . . . . . 4 4 . . . . 4 . . . 1 . . . . 3 3 Classes Destroyed 14 | . 5 1 3 . . 1 2 1 . . . . . . . . . . . . . . . . . . 1 . . . . . . Worker 16 | . 1 . 1 . . . 1 1 . . . . . . . . . 3 . . . . . . 1 . . . . . 2 4 2 Builder 3 | . . . . . . . 3 . . . . . . . . . . . . . . . . . . . . . . . . . . Tunneler 2 | . . . 1 . . . . . . . . . . . . . . 1 . . . . . . . . . . . . . . . Hauler 21 | . 2 . 6 . . . 1 1 . . . . 4 . . . . 2 . . . . 1 . 2 . . . . . . 2 . Recycler 20 | . 2 . . . . 1 . 2 . . . . 3 . . . . 2 . . . . . . . . . . . 4 2 3 1 Operator 14 | . . . 2 . . . 2 . . . . . 2 . . . . 1 . . . . 2 . 1 . . . . . 4 . . Watcher 33 | . 1 . 5 . . . 4 . . . . . 2 . . . . . . . . . . . 6 . . . . 4 3 5 3 Swarmer 39 | . . 1 9 3 . 4 . 1 . . . . . . . . 5 4 . . . . 4 . . . . . . . . 4 4 Grunt 36 | . 6 . 10 3 . 2 11 3 . . . . . . . . . . . . . . . . . . . . . . . . 1 Duelist 1 | . . . . . . . 1 . . . . . . . . . . . . . . . . . . . . . . . . . . Sentry 12 | . . . 8 . . . 2 1 . . . . . . . . . . . . . . . . . . . . . . . . 1 Hunter 4 | . . . . . . 1 2 . . . . . . . . . 1 . . . . . . . . . . . . . . . . Programmer 3 | . . . . . . . . 1 . . . . . . . . . . . . . . . . . . . . . . . . 2 Decomposer 2 | . . . . . . . . . 1 . . . . . . . . . . . . . . . . . 1 . . . . . . Packrat 4 | . . . . . . . . . . . . . . . . . . . 3 . . . . . . . 1 . . . . . . Master Thief 1 | . . . . . . . . . . . . . . . . . . . . . . . . . . . 1 . . . . . . Best Kill Streak 8 | . 4 1 5 3 . 4 5 4 . . 1 . 1 . . . 5 8 . . . . 4 . 2 . 1 . . 3 2 4 5 Combat Bots Only 5 | . 2 1 5 3 . 4 4 3 . . . . . . . . 5 4 . . . . 4 . . . 1 . . . . 4 4 Max Kills in Single Turn 4 | . 1 1 4 2 . 2 3 2 1 . 1 . 1 . . . 2 3 1 . . . 2 . 1 . 1 . . 1 1 2 2 Gunslinging . | . . . . . . . . . . . . . . . . . . . . . . . . . . . . . . . . . . Exploded 4 | . . . 4 2 . 2 2 1 . . . . . . . . 2 3 . . . . 2 . . . 1 . . . . 2 2 Melee 1 | . . . . . . . . 1 . . . . . . . . 1 . . . . . . . . . . . . . . 1 1 Uniques/NPCs Destroyed 1 | . . . . . . . . . . . 1 . . . . . . . . . . . . . . . . . . . . . . Data Miner (-7/Data Miner) Combat | -11 -10 -10 -9 -9 -9 -8 -8 -7 -7 -7 -7 -6 -6 -6 -6 -6 -5 -5 -5 -5 -5 -4 -4 -4 -4 -4 -4 -4 -3 -3 -3 -2 -1 -------- Run | Scr Mat Min Mat Min Exi Min Mat Fac Low Low Dat Pro Fac Low Low Zio Pro Fac Upp Upp War Pro Fac Was Fac Upp Upp Zhi Pro Res Qua Res Acc Damage Taken 4684 | . 507 12 655 342 . 338 1322 417 208 . 91 . 59 . . . 48 48 . . . . 80 . 23 . . . 29 95 44 208 158 Core 989 | . 122 . 99 110 . 50 152 93 55 . 48 . 40 . . . . 12 . . . . 16 . . . . . . 95 22 53 22 Absorbed by Shields . | . . . . . . . . . . . . . . . . . . . . . . . . . . . . . . . . . . Core Remaining (%) 82 | 100 . 51 . . . 35 72 . . . . 72 . . . . 95 . . . . 98 . . . . . . 98 . 91 96 98 Volleys Fired 287 | . 52 5 82 9 . 16 74 24 . . . . . . . . 3 4 . . . . 3 . . . 6 . 1 . 2 2 4 Largest 2 | . 2 2 2 2 . 2 2 2 . . . . . . . . 1 1 . . . . 1 . . . 1 . 1 . 1 1 1 Hottest 100 | . 40 40 100 91 . 100 73 73 . . . . . . . . 80 80 . . . . 80 . . . 80 . 80 . 80 80 80 Shots Fired 529 | . 104 10 161 18 . 28 136 47 . . . . . . . . 3 4 . . . . 3 . . . 6 . 1 . 2 2 4 Gun 417 | . 104 10 98 9 . 14 136 46 . . . . . . . . . . . . . . . . . . . . . . . . . Cannon 78 | . . . 59 9 . 10 . . . . . . . . . . . . . . . . . . . . . . . . . . . Launcher 31 | . . . 3 . . 2 . 1 . . . . . . . . 3 4 . . . . 3 . . . 6 . 1 . 2 2 4 Special 3 | . . . 1 . . 2 . . . . . . . . . . . . . . . . . . . . . . . . . . . Kinetic 326 | . 104 10 98 9 . 12 71 22 . . . . . . . . . . . . . . . . . . . . . . . . . Thermal 97 | . . . 60 9 . 12 . 16 . . . . . . . . . . . . . . . . . . . . . . . . . Explosive 31 | . . . 3 . . 2 . 1 . . . . . . . . 3 4 . . . . 3 . . . 6 . 1 . 2 2 4 Electromagnetic 75 | . . . . . . 2 65 8 . . . . . . . . . . . . . . . . . . . . . . . . . Robot Hit Streak 19 | . 9 5 16 15 . 17 19 12 . . . . . . . . . . . . . . . . . . 4 . . . . . . Robot Miss Streak 5 | . 4 1 4 . . 2 5 2 . . . . . . . . . . . . . . . . . . . . . . . . . Penetration Max 1 | . . . . . . . 1 1 . . . . . . . . . . . . . . . . . . . . . . . . . Secondary Targets 4 | . . . 2 . . . 2 . . . . . . . . . . . . . . . . . . . . . . . . . . Max Gunslinging Chain 1 | . . . 1 . . . 1 . . . . . . . . . . . . . . . . . . . . . . . . . . Shots Hit Robots 521 | . 67 7 102 14 . 20 101 41 1 . 2 . 22 2 1 1 5 14 5 . . . 10 . 29 1 4 1 . 11 18 26 16 Core Hits 306 | . 25 2 50 9 . 13 57 19 . . 1 . 12 1 . . 7 26 3 . . . 7 . 11 1 4 . . 8 13 19 18 Critical Hits 23 | . . . 9 2 . 2 . . . . . . . . . . 1 . . . . . . . 4 . . . . 1 . 3 1 Critical Kills 8 | . . . 3 . . . . . . . . . . . . . 1 . . . . . . . 2 . . . . . . 1 1 Critical Parts Destroyed 13 | . . . 5 1 . 2 . . . . . . . . . . . . . . . . . . 2 . . . . 1 . 2 . Melee Attacks 644 | . . . . . . . 16 15 16 . 11 4 64 2 4 1 23 76 5 2 5 . 48 . 91 1 4 1 6 50 76 80 43 Impact . | . . . . . . . . . . . . . . . . . . . . . . . . . . . . . . . . . . Slashing 285 | . . . . . . . 16 12 12 . . . 50 2 3 . 23 70 5 2 5 . 43 . 42 . . . . . . . . Piercing 339 | . . . . . . . . 3 4 . 10 4 11 . . . . . . . . . . . 46 1 4 1 6 50 76 80 43 Sneak Attacks 80 | . . . . . . . . 2 1 . 2 . 13 . 1 1 . 10 1 . . . 6 . 10 . 2 . . 3 8 14 6 Combat Hostiles 2 | . . . . . . . . 1 . . . . . . . . . . . . . . . . . . . . . . . . 1 Follow-up Attacks 1 | . . . . . . . . . . . . . 1 . . . . . . . . . . . . . . . . . . . . Damage Inflicted 24616 | . 855 72 2257 441 . 628 2198 1187 96 . 112 . 1693 219 . . 677 1748 336 . . . 1009 . 2217 171 755 174 2 1112 1653 2935 2069 Guns 4760 | . 855 72 966 102 . 145 1776 844 . . . . . . . . . . . . . . . . . . . . . . . . . Cannons 1205 | . . . 856 166 . 183 . . . . . . . . . . . . . . . . . . . . . . . . . . . Explosions 4603 | . . . 435 173 . 300 422 73 . . . . . . . . 471 767 . . . . 563 . . . 394 . 2 . . 348 655 Melee 14048 | . . . . . . . . 270 96 . 112 . 1693 219 . . 206 981 336 . . . 446 . 2217 171 361 174 . 1112 1653 2587 1414 Ramming . | . . . . . . . . . . . . . . . . . . . . . . . . . . . . . . . . . . Kinetic 3357 | . 855 72 966 102 . 110 809 443 . . . . . . . . . . . . . . . . . . . . . . . . . Thermal 1998 | . . . 856 339 . 183 326 294 . . . . . . . . . . . . . . . . . . . . . . . . . Explosive 3761 | . . . 435 . . 300 . 73 . . . . . . . . 471 520 . . . . 563 . . . 394 . 2 . . 348 655 Electromagnetic 1452 | . . . . . . 35 1063 107 . . . . . . . . . 247 . . . . . . . . . . . . . . . Impact . | . . . . . . . . . . . . . . . . . . . . . . . . . . . . . . . . . . Slashing 4357 | . . . . . . . . 270 96 . . . 1239 219 . . 206 981 336 . . . 446 . 564 . . . . . . . . Piercing 9691 | . . . . . . . . . . . 112 . 454 . . . . . . . . . . . 1653 171 361 174 . 1112 1653 2587 1414 Highest Corruption 7 | . . . . . . . . 3 7 7 7 7 2 . . . . . . . . . . . . . . . . . 2 . . Average Corruption 3 | . . . . . . . . 2 3 7 7 7 1 . . . . . . . . . . . . . . . . . 2 . . Corruption Purged 2 | . . . . . . . . . . . . . 2 . . . . . . . . . . . . . . . . . . . . Effects 43 | . . . . . . . . 17 6 3 1 3 8 . . . . . . . . . . . . . . . . . 5 . . Message Errors 12 | . . . . . . . . 4 2 . . 2 3 . . . . . . . . . . . . . . . . . 1 . . Matter Fused 2 | . . . . . . . . . 1 1 . . . . . . . . . . . . . . . . . . . . . . . Heat Flow Errors 8 | . . . . . . . . 6 . . 1 1 . . . . . . . . . . . . . . . . . . . . . Energy Discharges 9 | . . . . . . . . 3 1 2 . . 2 . . . . . . . . . . . . . . . . . 1 . . Data Loss (minor) 8 | . . . . . . . . 3 . . . . 3 . . . . . . . . . . . . . . . . . 2 . . Targeting Errors 4 | . . . . . . . . 1 2 . . . . . . . . . . . . . . . . . . . . . 1 . . Overload Shots . | . . . . . . . . . . . . . . . . . . . . . . . . . . . . . . . . . . Overflow Damage 2834 | . . . 6 66 . 15 51 96 81 . . . 283 85 . . . 87 188 . . . 91 . 435 . 2 132 . 140 390 298 388 Projectiles . | . . . . . . . . . . . . . . . . . . . . . . . . . . . . . . . . . . Explosions 376 | . . . 6 66 . 15 51 . . . . . . . . . . 1 . . . . 39 . . . 2 . . . . 70 126 Melee 2458 | . . . . . . . . 96 81 . . . 283 85 . . . 86 188 . . . 52 . 435 . . 132 . 140 390 228 262 Knockbacks . | . . . . . . . . . . . . . . . . . . . . . . . . . . . . . . . . . . Impact . | . . . . . . . . . . . . . . . . . . . . . . . . . . . . . . . . . . Kinetic . | . . . . . . . . . . . . . . . . . . . . . . . . . . . . . . . . . . Secondary . | . . . . . . . . . . . . . . . . . . . . . . . . . . . . . . . . . . Self-Inflicted Damage 194 | . . . . 31 . . 163 . . . . . . . . . . . . . . . . . . . . . . . . . . Shots 5 | . . . . 1 . . 4 . . . . . . . . . . . . . . . . . . . . . . . . . . Rammed . | . . . . . . . . . . . . . . . . . . . . . . . . . . . . . . . . . . Targets Rammed . | . . . . . . . . . . . . . . . . . . . . . . . . . . . . . . . . . . Kicked . | . . . . . . . . . . . . . . . . . . . . . . . . . . . . . . . . . . Crushed . | . . . . . . . . . . . . . . . . . . . . . . . . . . . . . . . . . . Highest Temperature 338 | . 8 . 25 20 . 66 4 338 . . 105 197 . . . . 87 93 . . . . 72 . 2 . 96 . 36 . . 119 92 Average Temperature 29 | . 2 . 9 10 . 37 4 92 . . 46 106 . . . . 47 43 . . . . 44 . 2 . 38 . 17 . . 26 16 Received Heat Transfer 1209 | . 300 6 156 30 . 81 441 90 . . 12 . 27 . . . . 9 . . . . 9 . 9 . . . 9 . 12 9 9 Siege Activations . | . . . . . . . . . . . . . . . . . . . . . . . . . . . . . . . . . . Robots Corrupted . | . . . . . . . . . . . . . . . . . . . . . . . . . . . . . . . . . . Combat Hostiles . | . . . . . . . . . . . . . . . . . . . . . . . . . . . . . . . . . . Parts Fried 9 | . . . . . . . 6 . . . . . 1 . . . . 2 . . . . . . . . . . . . . . . Impact Corruptions . | . . . . . . . . . . . . . . . . . . . . . . . . . . . . . . . . . . Robots Melted . | . . . . . . . . . . . . . . . . . . . . . . . . . . . . . . . . . . Combat Hostiles . | . . . . . . . . . . . . . . . . . . . . . . . . . . . . . . . . . . Parts Melted 3 | . . . 1 . . . . 2 . . . . . . . . . . . . . . . . . . . . . . . . . Heat Transferred 3164 | . . . 1554 496 . 333 300 481 . . . . . . . . . . . . . . . . . . . . . . . . . Parts Sabotaged . | . . . . . . . . . . . . . . . . . . . . . . . . . . . . . . . . . . Parts Stolen . | . . . . . . . . . . . . . . . . . . . . . . . . . . . . . . . . . . Parts Stripped . | . . . . . . . . . . . . . . . . . . . . . . . . . . . . . . . . . . Power Chain Reactions 5 | . . . . . . . 5 . . . . . . . . . . . . . . . . . . . . . . . . . . Missiles Intercepted . | . . . . . . . . . . . . . . . . . . . . . . . . . . . . . . . . . . Alert | -11 -10 -10 -9 -9 -9 -8 -8 -7 -7 -7 -7 -6 -6 -6 -6 -6 -5 -5 -5 -5 -5 -4 -4 -4 -4 -4 -4 -4 -3 -3 -3 -2 -1 ------- Run | Scr Mat Min Mat Min Exi Min Mat Fac Low Low Dat Pro Fac Low Low Zio Pro Fac Upp Upp War Pro Fac Was Fac Upp Upp Zhi Pro Res Qua Res Acc Peak Influence 665 | . 91 161 544 308 . 173 373 193 . . . . 420 . . . . 420 . . . . 606 2 402 . . . . 462 138 665 481 Average Influence 116 | . 34 42 234 229 . 59 144 91 . . . . 36 . . . . 63 . . . . 158 2 48 . . . . 66 59 173 246 Maximum Alert Level 2 | . . . 2 1 . . 1 . . . . . 2 . . . . 2 . . . . 2 . 2 . . . . 2 . 2 2 Low Security (%) 81 | 100 100 100 50 29 . 100 69 100 . . . . 97 . . . . 90 . . . . 79 100 99 . . . . 98 100 63 52 Level 1 14 | . . . 42 70 . . 30 . . . . . . . . . . 7 . . . . . . . . . . . . . 34 13 Level 2 4 | . . . 6 . . . . . . . . . 2 . . . . 2 . . . . 19 . . . . . . 1 . 2 34 Level 3 . | . . . . . . . . . . . . . . . . . . . . . . . . . . . . . . . . . . Level 4 . | . . . . . . . . . . . . . . . . . . . . . . . . . . . . . . . . . . Level 5 . | . . . . . . . . . . . . . . . . . . . . . . . . . . . . . . . . . . High Security . | . . . . . . . . . . . . . . . . . . . . . . . . . . . . . . . . . . Max Security . | . . . . . . . . . . . . . . . . . . . . . . . . . . . . . . . . . . Squads Dispatched 37 | . 1 . 2 . . 1 6 4 . . . . 3 . . . . 4 . . . . 4 . 4 . . . . 1 3 4 . Investigation 6 | . 1 . . . . . 1 . . . . . . . . . . 2 . . . . 2 . . . . . . . . . . Extermination 14 | . . . . . . . . 2 . . . . 1 . . . . 1 . . . . 2 . 2 . . . . 1 3 2 . Reinforcement 15 | . . . 2 . . 1 3 2 . . . . 2 . . . . 1 . . . . . . 2 . . . . . . 2 . Assault 1 | . . . . . . . 1 . . . . . . . . . . . . . . . . . . . . . . . . . . Garrison 1 | . . . . . . . 1 . . . . . . . . . . . . . . . . . . . . . . . . . . Intercept . | . . . . . . . . . . . . . . . . . . . . . . . . . . . . . . . . . . Construction Impeded 2 | . . . . . . 1 1 . . . . . . . . . . . . . . . . . . . . . . . . . . Haulers Reinforced 6 | . . . . . . . . 1 . . . . 1 . . . . . . . . . . . 2 . . . . . . 2 . Stealth | -11 -10 -10 -9 -9 -9 -8 -8 -7 -7 -7 -7 -6 -6 -6 -6 -6 -5 -5 -5 -5 -5 -4 -4 -4 -4 -4 -4 -4 -3 -3 -3 -2 -1 --------- Run | Scr Mat Min Mat Min Exi Min Mat Fac Low Low Dat Pro Fac Low Low Zio Pro Fac Upp Upp War Pro Fac Was Fac Upp Upp Zhi Pro Res Qua Res Acc Distress Signals 15 | . 2 . 2 . . . . . . . . . . . . . . . . . . . . . . . . . 10 . . 1 . Communications Jammed . | . . . . . . . . . . . . . . . . . . . . . . . . . . . . . . . . . . Distress Signals . | . . . . . . . . . . . . . . . . . . . . . . . . . . . . . . . . . . Times Spotted 237 | . 16 6 44 11 . 5 27 14 3 4 4 . 13 1 . . 3 10 . . 3 8 5 . 11 . 2 . 10 5 10 10 12 Peak Tracking Total 8 | . 4 3 5 5 . 3 4 4 3 4 4 . 2 2 . . 3 4 . . 2 8 2 . 3 . 2 . 5 2 3 3 4 Tactical Retreats 30 | . 1 . . 1 . . . 1 2 . . . 5 . . . 1 3 . . . 1 1 . 1 . . . 4 1 2 4 2 Traps | -11 -10 -10 -9 -9 -9 -8 -8 -7 -7 -7 -7 -6 -6 -6 -6 -6 -5 -5 -5 -5 -5 -4 -4 -4 -4 -4 -4 -4 -3 -3 -3 -2 -1 ------- Run | Scr Mat Min Mat Min Exi Min Mat Fac Low Low Dat Pro Fac Low Low Zio Pro Fac Upp Upp War Pro Fac Was Fac Upp Upp Zhi Pro Res Qua Res Acc Traps Triggered 18 | . 1 . . . . . . 1 . . . . 2 . . . . 3 . . . . 3 . 2 . . . 1 1 1 2 1 Indirectly 1 | . . . . . . . . . . . . . . . . . . 1 . . . . . . . . . . . . . . . Trap Hack Attempts 5 | . . . . . . . . . . . . . 2 . . . . . . . . . 3 . . . . . . . . . . Triggered . | . . . . . . . . . . . . . . . . . . . . . . . . . . . . . . . . . . Disarmed 1 | . . . . . . . . . . . . . . . . . . . . . . . 1 . . . . . . . . . . Reprogrammed 10 | . . . . . . . . . . . . . 5 . . . . 3 . . . . 2 . . . . . . . . . . Reused 3 | . . . . . . . . . . . . . 2 . . . . . . . . . 1 . . . . . . . . . . Traps Extracted . | . . . . . . . . . . . . . . . . . . . . . . . . . . . . . . . . . . Installed . | . . . . . . . . . . . . . . . . . . . . . . . . . . . . . . . . . . Triggered 21 | . . . . . . . . . . 5 . . 2 . 11 . . . . . . . 1 . . . 2 . . . . . . Machines | -11 -10 -10 -9 -9 -9 -8 -8 -7 -7 -7 -7 -6 -6 -6 -6 -6 -5 -5 -5 -5 -5 -4 -4 -4 -4 -4 -4 -4 -3 -3 -3 -2 -1 ---------- Run | Scr Mat Min Mat Min Exi Min Mat Fac Low Low Dat Pro Fac Low Low Zio Pro Fac Upp Upp War Pro Fac Was Fac Upp Upp Zhi Pro Res Qua Res Acc Machines Disabled 36 | . . . 3 5 . . 4 1 . . 1 . 1 . . . . 9 . . . . 2 . 2 . . . . . 5 2 1 Max in Single Turn 6 | . . . 1 5 . . 2 1 . . 1 . 1 . . . . 6 . . . . 1 . 1 . . . . . 1 1 1 Garrison Access 13 | . . . . . . . 1 1 . . . . 2 . . . . 3 . . . . 2 . 2 . . . . . . 1 1 Energy Cycler 1 | . . . . . . . . . . . . . . . . . . . . . . . . . . . . . . . . . 1 Machines Sabotaged . | . . . . . . . . . . . . . . . . . . . . . . . . . . . . . . . . . . Garrisons Compromised . | . . . . . . . . . . . . . . . . . . . . . . . . . . . . . . . . . . Overloaded Fab Kills . | . . . . . . . . . . . . . . . . . . . . . . . . . . . . . . . . . . Fab Network Shutdowns 6 | . . . . . . . . . . . . . 1 . . . . 1 . . . . 1 . 1 . . . . 1 . 1 . Hacking | -11 -10 -10 -9 -9 -9 -8 -8 -7 -7 -7 -7 -6 -6 -6 -6 -6 -5 -5 -5 -5 -5 -4 -4 -4 -4 -4 -4 -4 -3 -3 -3 -2 -1 --------- Run | Scr Mat Min Mat Min Exi Min Mat Fac Low Low Dat Pro Fac Low Low Zio Pro Fac Upp Upp War Pro Fac Was Fac Upp Upp Zhi Pro Res Qua Res Acc Machines Accessed 160 | . 6 . 10 . 2 . 2 12 . 1 2 . 22 1 1 . . 21 2 . 5 . 11 . 21 . . 4 1 7 13 11 5 Terminals 93 | . 6 . 9 . . . 2 8 . . . . 14 . . . . 10 . . . . 5 . 12 . . . 1 4 12 7 3 Fabricators 20 | . . . . . . . . 3 . . . . 3 . . . . 3 . . . . 2 . 4 . . . . 2 . 2 1 Repair Stations 10 | . . . . . . . . . . . . . 2 . . . . 3 . . . . 2 . 2 . . . . 1 . . . Recycling Units 1 | . . . . . . . . . . . . . 1 . . . . . . . . . . . . . . . . . . . . Scanalyzers 6 | . . . 1 . . . . . . . . . . . . . . 2 . . . . . . 1 . . . . . 1 1 . Garrison Access 12 | . . . . . . . . 1 . . . . 2 . . . . 3 . . . . 2 . 2 . . . . . . 1 1 Total Hacks 636 | . 31 . 31 . 2 . 9 40 . 1 12 . 92 1 1 . . 92 3 . 8 . 50 . 80 . . 17 1 49 42 55 19 Successful 539 | . 18 . 21 . 2 . 5 20 . 1 12 . 75 1 1 . . 79 3 . 8 . 44 . 74 . . 17 1 43 41 54 19 Failed 95 | . 13 . 10 . . . 4 20 . . . . 17 . . . . 12 . . . . 5 . 6 . . . . 6 1 1 . Catastrophic 10 | . . . 4 . . . . 2 . . . . 4 . . . . . . . . . . . . . . . . . . . . Database Lockouts 2 | . . . . . . . . . . . . . . . . . . 1 . . . . 1 . . . . . . . . . . Manual 333 | . 18 . 17 . 1 . 9 22 . . . . 51 . . . . 47 . . 1 . 30 . 45 . . . . 30 26 27 9 Terminals 433 | . 31 . 29 . . . 9 27 . . . . 69 . . . . 60 . . . . 34 . 53 . . . 1 30 40 39 11 Fabricators 102 | . . . . . . . . 12 . . . . 14 . . . . 15 . . . . 10 . 16 . . . . 17 . 11 7 Repair Stations 30 | . . . . . . . . . . . . . 6 . . . . 10 . . . . 4 . 8 . . . . 2 . . . Recycling Units 1 | . . . . . . . . . . . . . 1 . . . . . . . . . . . . . . . . . . . . Scanalyzers 13 | . . . 2 . . . . . . . . . . . . . . 4 . . . . . . 1 . . . . . 2 4 . Garrison Access 12 | . . . . . . . . 1 . . . . 2 . . . . 3 . . . . 2 . 2 . . . . . . 1 1 Terminal Hacks 324 | . 12 . 14 . 2 . 4 8 . 1 12 . 41 1 1 . . 42 3 . 8 . 26 . 38 . . 17 1 20 30 34 9 Record 22 | . . . . . 1 . . . . . 6 . . . . . . . 2 . 7 . . . . . . 5 1 . . . . Part Schematic 33 | . . . . . . . 2 . . . 3 . 4 . . . . 1 . . . . 2 . 7 . . 4 . 6 1 3 . Robot Analysis 12 | . . . . . . . . . . . . . 1 . . . . 1 . . . . . . . . . 4 . 2 3 1 . Prototype ID Bank 33 | . 3 . 3 . . . . 1 . . 3 . 5 . . . . 3 . . . . 1 . 2 . . 4 . . 1 5 2 Open Door 6 | . . . . . . . . . . 1 . . . 1 1 . . . 1 . 1 . . . . . . . . . . . 1 Level Access Points 2 | . . . . . . . . . . . . . . . . . . . . . . . . . . . . . . . 1 . 1 Branch Access Points 7 | . . . . . . . . 1 . . . . 1 . . . . 1 . . . . 1 . 1 . . . . 1 . 1 . Emergency Access Points 2 | . . . . . . . . . . . . . . . . . . 1 . . . . . . . . . . . . 1 . . Machine Index 8 | . . . . . . . . . . . . . 1 . . . . 1 . . . . 1 . 1 . . . . 1 1 2 . Terminal Index 2 | . . . . . . . . 1 . . . . . . . . . . . . . . . . . . . . . . . . 1 Fabricator Index 2 | . . . . . . . . 1 . . . . . . . . . . . . . . 1 . . . . . . . . . . Alert Level 21 | . 1 . 2 . . . . 1 . . . . 4 . . . . 4 . . . . 2 . 3 . . . . . 2 2 . Unreport Threat 37 | . 1 . 3 . . . . . . . . . 5 . . . . 9 . . . . 3 . 6 . . . . 4 . 4 2 Locate Traps 42 | . 4 . 1 . . . . . . . . . 7 . . . . 6 . . . . 5 . 7 . . . . 1 4 6 1 Reprogram Traps 3 | . . . . . . . . . . . . . 1 . . . . 1 . . . . 1 . . . . . . . . . . Recall Investigation 3 | . 1 . . . . . . . . . . . . . . . . . . . . . 2 . . . . . . . . . . Recall Extermination 13 | . . . . . . . . 1 . . . . 1 . . . . 1 . . . . 2 . 2 . . . . 1 3 2 . Recall Reinforcements 8 | . . . 1 . . . 1 . . . . . 1 . . . . 1 . . . . . . 2 . . . . . . 2 . Hauler Manifests 13 | . . . 2 . . . . 1 . . . . 2 . . . . 2 . . . . 1 . 1 . . . . 2 1 1 . Registered Components 3 | . . . . . . . . . . . . . 1 . . . . 1 . . . . . . . . . . . . 1 . . Registered Prototypes 10 | . . . . . . . . 1 . . . . 1 . . . . 2 . . . . 1 . 2 . . . . 1 1 1 . Zone Layout 41 | . 2 . 2 . . . 1 . . . . . 6 . . . . 7 . . . . 3 . 4 . . . . 1 10 4 1 EX-Prototype ID Bank 1 | . . . . . 1 . . . . . . . . . . . . . . . . . . . . . . . . . . . . Fabricator Hacks 58 | . . . . . . . . 4 . . . . 9 . . . . 8 . . . . 5 . 10 . . . . 12 . 6 4 Network Status 8 | . . . . . . . . . . . . . 2 . . . . . . . . . . . 2 . . . . 3 . 1 . Load Schematic 21 | . . . . . . . . 2 . . . . 3 . . . . 3 . . . . 2 . 3 . . . . 4 . 2 2 Build 29 | . . . . . . . . 2 . . . . 4 . . . . 5 . . . . 3 . 5 . . . . 5 . 3 2 Repair Station Hacks 30 | . . . . . . . . . . . . . 6 . . . . 10 . . . . 4 . 8 . . . . 2 . . . Scan Component 15 | . . . . . . . . . . . . . 3 . . . . 5 . . . . 2 . 4 . . . . 1 . . . Repair 15 | . . . . . . . . . . . . . 3 . . . . 5 . . . . 2 . 4 . . . . 1 . . . Recycling Unit Hacks 1 | . . . . . . . . . . . . . 1 . . . . . . . . . . . . . . . . . . . . Report Inventory 1 | . . . . . . . . . . . . . 1 . . . . . . . . . . . . . . . . . . . . Scanalyzer 13 | . . . 2 . . . . . . . . . . . . . . 4 . . . . . . 1 . . . . . 2 4 . Insert Component 9 | . . . 1 . . . . . . . . . . . . . . 2 . . . . . . 1 . . . . . 2 3 . Analyze 4 | . . . 1 . . . . . . . . . . . . . . 2 . . . . . . . . . . . . . 1 . Garrison Access Hacks 12 | . . . . . . . . 1 . . . . 2 . . . . 3 . . . . 2 . 2 . . . . . . 1 1 Seal Access 12 | . . . . . . . . 1 . . . . 2 . . . . 3 . . . . 2 . 2 . . . . . . 1 1 Unauthorized Hacks 101 | . 6 . 5 . . . 1 7 . . . . 16 . . . . 12 . . . . 7 . 15 . . . . 9 9 9 5 Terminals 60 | . 6 . 5 . . . 1 2 . . . . 11 . . . . 5 . . . . 2 . 9 . . . . 4 9 4 2 Track 8 | . 3 . 3 . . . . . . . . . 1 . . . . . . . . . . . . . . . . . 1 . . Assimilate 2 | . . . . . . . . 1 . . . . 1 . . . . . . . . . . . . . . . . . . . . Botnet 46 | . 3 . 2 . . . 1 1 . . . . 7 . . . . 4 . . . . 2 . 9 . . . . 4 8 3 2 Disrupt 3 | . . . . . . . . . . . . . 1 . . . . 1 . . . . . . . . . . . . . 1 . Operators 1 | . . . . . . . . . . . . . 1 . . . . . . . . . . . . . . . . . . . . Fabricators 41 | . . . . . . . . 5 . . . . 5 . . . . 7 . . . . 5 . 6 . . . . 5 . 5 3 Report 7 | . . . . . . . . . . . . . 1 . . . . 1 . . . . 1 . 1 . . . . 1 . 1 1 Prioritize 15 | . . . . . . . . 2 . . . . 1 . . . . 3 . . . . 2 . 2 . . . . 2 . 2 1 Siphon 16 | . . . . . . . . 3 . . . . 1 . . . . 3 . . . . 2 . 2 . . . . 2 . 2 1 Haulers 3 | . . . . . . . . . . . . . 2 . . . . . . . . . . . 1 . . . . . . . . Repair Stations . | . . . . . . . . . . . . . . . . . . . . . . . . . . . . . . . . . . Recycling Units . | . . . . . . . . . . . . . . . . . . . . . . . . . . . . . . . . . . Scanalyzers . | . . . . . . . . . . . . . . . . . . . . . . . . . . . . . . . . . . Garrison Access . | . . . . . . . . . . . . . . . . . . . . . . . . . . . . . . . . . . Data Cores Recovered 8 | . . . . . . . . . . . . . . . . . . 1 . . . . 2 . 1 . . . . . 4 . . Used 4 | . . . . . . . . . . . . . . . . . . . . . . . 1 . 1 . . . . . 2 . . Hacking Detections 73 | . 6 . 9 . . . 2 11 . . . . 9 . . . . 8 . . . . 6 . 6 . . . . 4 6 3 3 Full Trace Events . | . . . . . . . . . . . . . . . . . . . . . . . . . . . . . . . . . . Feedback Events . | . . . . . . . . . . . . . . . . . . . . . . . . . . . . . . . . . . Feedback Blocked . | . . . . . . . . . . . . . . . . . . . . . . . . . . . . . . . . . . Robot Schematics Acquired . | . . . . . . . . . . . . . . . . . . . . . . . . . . . . . . . . . . Robots Built . | . . . . . . . . . . . . . . . . . . . . . . . . . . . . . . . . . . Matter . | . . . . . . . . . . . . . . . . . . . . . . . . . . . . . . . . . . Time . | . . . . . . . . . . . . . . . . . . . . . . . . . . . . . . . . . . Total Robot Build Rating . | . . . . . . . . . . . . . . . . . . . . . . . . . . . . . . . . . . Part Schematics Acquired 36 | . . . 1 . . . 2 . . . 3 . 4 . . . . 2 . . . . 2 . 7 . . 4 . 6 1 4 . Parts Built 25 | . . . . . . . . 2 . . . . 4 . . . . 4 . . . . 3 . 4 . . . . 4 . 2 2 Matter 6093 | . . . . . . . . 278 . . . . 794 . . . . 1002 . . . . 664 . 1052 . . . . 1079 . 624 600 Time 1469 | . . . . . . . . 98 . . . . 136 . . . . 188 . . . . 194 . 325 . . . . 291 . 166 71 Total Part Build Rating 166 | . . . . . . . . 4 . . . . 24 . . . . 26 . . . . 16 . 28 . . . . 33 . 18 17 Parts Repaired 15 | . . . . . . . . . . . . . 3 . . . . 5 . . . . 2 . 4 . . . . 1 . . . Time 699 | . . . . . . . . . . . . . 103 . . . . 228 . . . . 88 . 181 . . . . 99 . . . Parts Recycled . | . . . . . . . . . . . . . . . . . . . . . . . . . . . . . . . . . . Recycled Matter . | . . . . . . . . . . . . . . . . . . . . . . . . . . . . . . . . . . Retrieved Matter . | . . . . . . . . . . . . . . . . . . . . . . . . . . . . . . . . . . Retrieved Components . | . . . . . . . . . . . . . . . . . . . . . . . . . . . . . . . . . . Parts Scanalyzed 3 | . . . 1 . . . . . . . . . . . . . . 1 . . . . . . . . . . . . . 1 . Part Schematics Acquired 3 | . . . 1 . . . . . . . . . . . . . . 1 . . . . . . . . . . . . . 1 . Parts Damaged . | . . . . . . . . . . . . . . . . . . . . . . . . . . . . . . . . . . Bothacking | -11 -10 -10 -9 -9 -9 -8 -8 -7 -7 -7 -7 -6 -6 -6 -6 -6 -5 -5 -5 -5 -5 -4 -4 -4 -4 -4 -4 -4 -3 -3 -3 -2 -1 ------------ Run | Scr Mat Min Mat Min Exi Min Mat Fac Low Low Dat Pro Fac Low Low Zio Pro Fac Upp Upp War Pro Fac Was Fac Upp Upp Zhi Pro Res Qua Res Acc Used RIF Installer . | . . . . . . . . . . . . . . . . . . . . . . . . . . . . . . . . . . Robots Hacked 14 | . . . . . . . . . . . 1 . 3 . . 1 . 4 . . . . 5 . . . . . . . . . . Non-combat 12 | . . . . . . . . . . . . . 3 . . . . 4 . . . . 5 . . . . . . . . . . Combat 2 | . . . . . . . . . . . 1 . . . . 1 . . . . . . . . . . . . . . . . . Robot Hacks Applied 15 | . . . . . . . . . . . 1 . 3 . . 1 . 5 . . . . 5 . . . . . . . . . . parse_system 3 | . . . . . . . . . . . 1 . . . . 1 . . . . . . 1 . . . . . . . . . . find_chute 10 | . . . . . . . . . . . . . 3 . . . . 4 . . . . 3 . . . . . . . . . . find_fabricator 2 | . . . . . . . . . . . . . . . . . . 1 . . . . 1 . . . . . . . . . . Relay Couplers Released 1 | . . . . . . . 1 . . . . . . . . . . . . . . . . . . . . . . . . . . Machine Destruction 1 | . . . . . . . 1 . . . . . . . . . . . . . . . . . . . . . . . . . . Robots Rewired . | . . . . . . . . . . . . . . . . . . . . . . . . . . . . . . . . . . Allies Hacked . | . . . . . . . . . . . . . . . . . . . . . . . . . . . . . . . . . . Hacks Repelled . | . . . . . . . . . . . . . . . . . . . . . . . . . . . . . . . . . . Allies | -11 -10 -10 -9 -9 -9 -8 -8 -7 -7 -7 -7 -6 -6 -6 -6 -6 -5 -5 -5 -5 -5 -4 -4 -4 -4 -4 -4 -4 -3 -3 -3 -2 -1 -------- Run | Scr Mat Min Mat Min Exi Min Mat Fac Low Low Dat Pro Fac Low Low Zio Pro Fac Upp Upp War Pro Fac Was Fac Upp Upp Zhi Pro Res Qua Res Acc Total Allies 34 | . . 3 . 3 . . . 4 . . . . 1 . . 3 . . . . . . . 20 . . . . . . . . . Largest Group 20 | . . 3 2 3 1 1 . 3 . . . . 1 . . 3 3 . . . . . . 20 . . . . . . . . . Highest-Rated Group 780 | . . 76 62 40 16 16 . 93 . . . . 26 . . 48 48 . . . . . . 780 . . . . . . . . . Highest-Rated Ally 50 | . . 31 31 16 16 16 . 31 . . . . 26 . . 20 20 . . . . . . 50 . . . . . . . . . Total Orders . | . . . . . . . . . . . . . . . . . . . . . . . . . . . . . . . . . . Ally Attacks 86 | . . 15 16 9 . 1 . 21 . . . . . . . . 24 . . . . . . . . . . . . . . . . Total Damage 1292 | . . 294 277 122 . . . 315 . . . . . . . . 284 . . . . . . . . . . . . . . . . Kills 19 | . . 6 5 4 . . . 4 . . . . . . . . . . . . . . . . . . . . . . . . . Allies Corrupted . | . . . . . . . . . . . . . . . . . . . . . . . . . . . . . . . . . . Allies Melted . | . . . . . . . . . . . . . . . . . . . . . . . . . . . . . . . . . . Intel | -11 -10 -10 -9 -9 -9 -8 -8 -7 -7 -7 -7 -6 -6 -6 -6 -6 -5 -5 -5 -5 -5 -4 -4 -4 -4 -4 -4 -4 -3 -3 -3 -2 -1 ------- Run | Scr Mat Min Mat Min Exi Min Mat Fac Low Low Dat Pro Fac Low Low Zio Pro Fac Upp Upp War Pro Fac Was Fac Upp Upp Zhi Pro Res Qua Res Acc Robot Analysis Total 12 | . . . . . . . . . . . . . 1 . . . . 1 . . . . . . . . . 4 . 2 3 1 . Derelict Logs Recovered 15 | . . . . . . . . . 2 . . 2 . 1 . . 2 . . 3 . 1 . . . 3 1 . . . . . . Drone Launches . | . . . . . . . . . . . . . . . . . . . . . . . . . . . . . . . . . . Drone Recoveries . | . . . . . . . . . . . . . . . . . . . . . . . . . . . . . . . . . . Exploration | -11 -10 -10 -9 -9 -9 -8 -8 -7 -7 -7 -7 -6 -6 -6 -6 -6 -5 -5 -5 -5 -5 -4 -4 -4 -4 -4 -4 -4 -3 -3 -3 -2 -1 ------------- Run | Scr Mat Min Mat Min Exi Min Mat Fac Low Low Dat Pro Fac Low Low Zio Pro Fac Upp Upp War Pro Fac Was Fac Upp Upp Zhi Pro Res Qua Res Acc Turns Passed 20336 | 43 865 384 2819 385 345 861 1718 1451 193 109 67 99 1692 151 121 270 306 1375 77 101 176 37 951 128 1514 70 162 50 256 699 1038 1193 630 Spaces Moved 25767 | 35 583 211 1550 210 211 444 613 1267 387 308 104 261 2460 387 381 499 533 2110 247 228 632 157 1602 209 2428 298 568 195 417 1719 1566 1965 982 Core 3 | 3 . . . . . . . . . . . . . . . . . . . . . . . . . . . . . . . . . Treads 203 | . . . 93 . . 11 99 . . . . . . . . . . . . . . . . . . . . . . . . . . Legs . | . . . . . . . . . . . . . . . . . . . . . . . . . . . . . . . . . . Wheels 3856 | 32 583 211 1457 210 211 433 514 205 . . . . . . . . . . . . . . . . . . . . . . . . . Hover . | . . . . . . . . . . . . . . . . . . . . . . . . . . . . . . . . . . Flight 21705 | . . . . . . . . 1062 387 308 104 261 2460 387 381 499 533 2110 247 228 632 157 1602 209 2428 298 568 195 417 1719 1566 1965 982 Fastest Speed 17 | 50 90 120 120 160 160 160 140 32 32 32 32 29 29 29 29 29 29 22 22 22 22 22 22 22 19 22 22 19 19 19 19 19 17 Average Speed 43 | 86 102 120 148 160 160 161 161 51 32 32 32 31 30 29 29 29 29 25 22 22 22 22 22 22 22 22 22 20 19 20 21 21 17 Slowest Speed 240 | 100 120 120 240 160 160 240 240 160 32 32 32 32 35 29 29 29 29 29 22 22 22 22 22 22 115 22 22 22 19 22 22 25 19 Overloaded Moves . | . . . . . . . . . . . . . . . . . . . . . . . . . . . . . . . . . . Propulsion Burnouts . | . . . . . . . . . . . . . . . . . . . . . . . . . . . . . . . . . . Robots Hopped 49 | . . . . . . . . 2 . . . . 8 1 . . . 2 . . 1 . 10 . 8 . . . . 6 10 1 . Cave-ins Triggered 1 | . . . . . . . . . 1 . . . . . . . . . . . . . . . . . . . . . . . . Exploration Rate (%) 55 | 3 83 49 96 35 60 89 37 27 65 50 77 53 61 62 57 80 68 49 40 49 84 37 23 94 52 50 61 62 43 28 93 39 24 Regions Visited 33 Branch Regions 21 Pre-discovered Areas 11 | . . . . . 1 . . . 1 . 1 . . 1 . . 1 . . . . . . . . 2 1 3 . . . . . Known Exits Taken 24 | . . . . . . . 1 1 1 1 1 1 1 1 1 1 1 1 1 1 1 1 . . 1 1 1 1 1 1 1 1 . Unknown Exits Taken 7 | 1 1 1 1 1 1 1 . . . . . . . . . . . . . . . . . . . . . . . . . . . Scrap Searched 24 | . . 1 . 1 . 1 . . 3 2 . 1 . 1 1 4 1 . 3 1 . 1 . . . . 2 . 1 . . . . Spaces Dug 404 | . . . 1 . . 2 16 6 11 . 3 3 31 . 3 . 15 59 . 2 4 . 31 . 57 . 2 . 5 35 49 46 23 Terrain Destroyed 788 | . . . 17 20 . 21 31 14 11 . 3 3 31 . 3 . 51 88 . 2 4 . 67 . 57 . 79 . 5 35 97 74 75 Melee 401 | . . . . . . . 16 6 11 . 3 3 31 . 3 . 15 59 . 2 4 . 31 . 57 . 2 . 5 35 49 46 23 Projectile 6 | . . . 1 . . 2 2 1 . . . . . . . . . . . . . . . . . . . . . . . . . AOE 381 | . . . 16 20 . 19 13 7 . . . . . . . . 36 29 . . . . 36 . . . 77 . . . 48 28 52 Actions | -11 -10 -10 -9 -9 -9 -8 -8 -7 -7 -7 -7 -6 -6 -6 -6 -6 -5 -5 -5 -5 -5 -4 -4 -4 -4 -4 -4 -4 -3 -3 -3 -2 -1 --------- Run | Scr Mat Min Mat Min Exi Min Mat Fac Low Low Dat Pro Fac Low Low Zio Pro Fac Upp Upp War Pro Fac Was Fac Upp Upp Zhi Pro Res Qua Res Acc Total 33708 | 44 752 333 1924 244 219 553 1185 2004 436 318 124 269 3306 421 385 623 646 2835 261 275 661 158 2118 290 3265 300 590 202 582 2008 2239 2717 1421 Wait 6471 | . 74 114 203 13 3 80 433 613 38 5 2 1 735 34 1 118 82 615 . 44 9 2 455 82 722 2 12 . 152 222 586 638 381 Move 25637 | 34 582 210 1549 209 210 443 612 1262 385 307 103 260 2444 384 380 498 532 2105 246 227 629 156 1583 208 2411 297 567 194 416 1706 1545 1962 981 Hop 47 | . . . . . . . . 2 . . . . 7 1 . . . 2 . . 1 . 9 . 8 . . . . 6 10 1 . Pick Up 131 | 4 23 2 19 5 2 3 11 15 . 2 1 . 9 . . . . 10 . . 2 . 1 . 3 . . 1 . 7 6 4 1 Fast Attach 108 | 6 1 . 5 . . 1 3 9 . 1 3 2 10 . . 2 2 7 5 1 6 . 6 . 15 . . 2 . 5 5 7 4 Attach 41 | . 2 . 3 1 . 2 8 9 . 1 . 1 2 . . . 1 3 . . . . 1 . 1 . . 1 . . . 2 3 Detach 10 | . . . 1 . . . . 1 . . 3 . 1 . . . 1 . . . . . . . 1 . . . . . . 1 1 Swap 104 | . 5 . 26 1 2 5 15 15 . . 2 . 5 . . 1 . 5 . . 1 . 4 . 2 . 1 1 . 5 1 7 . Drop 214 | . 13 2 36 6 2 3 13 42 . 2 1 1 17 . . 3 2 8 5 1 8 . 5 . 11 . . 2 . 7 8 13 3 Fire 287 | . 52 5 82 9 . 16 74 24 . . . . . . . . 3 4 . . . . 3 . . . 6 . 1 . 2 2 4 Melee 627 | . . . . . . . 16 12 12 . 9 4 56 2 4 1 23 76 5 2 5 . 48 . 91 1 4 1 6 50 76 80 43 Ram . | . . . . . . . . . . . . . . . . . . . . . . . . . . . . . . . . . . Kick . | . . . . . . . . . . . . . . . . . . . . . . . . . . . . . . . . . . Crush . | . . . . . . . . . . . . . . . . . . . . . . . . . . . . . . . . . . Escape Stasis 26 | . . . . . . . . . 1 . . . 18 . . . . . . . . . . . . . . . 7 . . . . Rewire . | . . . . . . . . . . . . . . . . . . . . . . . . . . . . . . . . . . Trap 5 | . . . . . . . . . . . . . 2 . . . . . . . . . 3 . . . . . . . . . . Miscellaneous . | . . . . . . . . . . . . . . . . . . . . . . . . . . . . . . . . . . Route ------- -11/Scrapyard -10/Materials (discovered 2 exits: *Mat / [*Min]) -10/Mines -9/Materials (discovered 4 exits: *Mat x3 / [*Min]) -9/Mines (discovered 3 exits: *Mat x2 / *Exi) -9/Exiles -8/Mines -8/Materials -7/Factory (discovered 3 exits: *Fac / *Low x2) -7/Lower Caves -7/Lower Caves -7/Data Miner -6/Proximity Caves -6/Factory (discovered 7 exits: *Fac x3 / *Low x2 / *Ext x2) -6/Lower Caves -6/Lower Caves -6/Zion -5/Proximity Caves -5/Factory (discovered 4 exits: *Fac x2 / *Upp x2) -5/Upper Caves -5/Upper Caves (discovered 2 exits: *Fac / *War) -5/Warlord -4/Proximity Caves -4/Factory (discovered 5 exits: Res x3 / Upp x2) -4/Waste -4/Factory (discovered 4 exits: *Res x2 / *Upp x2) -4/Upper Caves -4/Upper Caves -4/Zhirov -3/Proximity Caves -3/Research (discovered 3 exits: Arm / *Qua x2) -3/Quarantine -2/Research (discovered 4 exits: *Acc x2 / Tes x2) -1/Access To Fleet Rendezvous History --------- Turn | Location | Event 18 | -11/Scrapyard | Discovered new exit (range 15) 44 | -11/Scrapyard | Entered Materials 156 | -10/Materials | Discovered new exit (range 5) 213 | -10/Materials | Discovered new exit (range 16) 324 | -10/Materials | Build established: Mutant 909 | -10/Materials | Entered Mines 1020 | -10/Mines | Found a damaged Exp. Sensor Array with a note attached 1024 | -10/Mines | Found Prototype Device 1065 | -10/Mines | Received a Mining Laser from a helpful Derelict 1137 | -10/Mines | Excavation squad dispatched 1137 | -10/Mines | A large section of the Mines collapsed 1281 | -10/Mines | Discovered new exit (range 5) 1293 | -10/Mines | Entered Materials 1293 | -9/Materials | Accompanied by 2 allies 1293 | -9/Materials | Evolved 2 slots: Utility x2 1298 | -9/Materials | Led the pair of lost Derelicts to an unsafe place 1418 | -9/Materials | Identified Exp. Sensor Array 1966 | -9/Materials | Discovered new exit (range 8) 2287 | -9/Materials | Discovered new exit (range 16) 3197 | -9/Materials | Discovered new exit (range 13) 3298 | -9/Materials | Discovered new exit (range 15) 3581 | -9/Materials | Build established: Hauler-Mutant 4112 | -9/Materials | Entered Mines 4297 | -9/Mines | Discovered new exit (range 7) 4310 | -9/Mines | Assisted by bots powering up and referring to "LRC-V3" 4335 | -9/Mines | A weapon hastily lodged in a ceiling crevice suddenly fell to the ground 4409 | -9/Mines | Assembled infested the area 4438 | -9/Mines | Core integrity fell below 50% 4441 | -9/Mines | Discovered new exit (range 8) 4487 | -9/Mines | Discovered new exit (range 5) 4497 | -9/Mines | Entered Exiles 4497 | -9/Exiles | Accompanied by 1 ally 4534 | -9/Exiles | Met 8R-AWN 4565 | -9/Exiles | Met EX-HEX 4608 | -9/Exiles | Met EX-BIN 4625 | -9/Exiles | Aligned with FarCom system 4627 | -9/Exiles | Given EX-Vault access code 4664 | -9/Exiles | Opened EX-Vault 4676 | -9/Exiles | Found Field Lobotomy Kit 4682 | -9/Exiles | Found Superbattery 4724 | -9/Exiles | Warned to stay clear of 0b10 Research branches 4771 | -9/Exiles | Met EX-DEC 4777 | -9/Exiles | Learned location of Zion (-6) 4827 | -9/Exiles | Discovered new exit (range 10) 4842 | -9/Exiles | Stole two prototypes: Superbattery, Field Lobotomy Kit 4842 | -9/Exiles | Entered Mines 4842 | -8/Mines | Accompanied by 1 ally 5693 | -8/Mines | Discovered new exit (range 6) 5703 | -8/Mines | Entered Materials 5703 | -8/Materials | Evolved 2 slots: Utility x2 6527 | -8/Materials | Garrison activated, responded to threat 6657 | -8/Materials | Build established: Scavenger-Mutant 6962 | -8/Materials | Lost 4 parts (1p1n1u1w) 7399 | -8/Materials | Discovered new exit (range 16) 7420 | -8/Materials | Identified exit to Factory 7421 | -8/Materials | Entered Factory 7421 | -7/Factory | Evolved 2 slots: Utility x2 7423 | -7/Factory | FarCom data flow suspended 7776 | -7/Factory | Fabricated Imp. Flight Unit? 8115 | -7/Factory | Allied Derelicts emerged from ambush trap array 8397 | -7/Factory | Build established: Hacker-Sprinter 8400 | -7/Factory | Identified exit to Lower Caves 8480 | -7/Factory | Fabricated Imp. Flight Unit? 8857 | -7/Factory | Discovered new exit (range 15) 8865 | -7/Factory | Identified exit to Factory 8872 | -7/Factory | Entered Lower Caves 8918 | -7/Lower Caves | Encountered a Warlord checkpoint 9021 | -7/Lower Caves | Crushed by falling debris 9053 | -7/Lower Caves | Identified exit to Lower Caves 9065 | -7/Lower Caves | Entered another Lower Caves area 9100 | -7/Lower Caves | Encountered a Warlord checkpoint 9163 | -7/Lower Caves | Discovered new exit (range 15) 9174 | -7/Lower Caves | Identified exit to Data Miner 9174 | -7/Lower Caves | Entered Data Miner 9174 | -7/Data Miner | Discovered new exit (range 6) 9181 | -7/Data Miner | Met Data Miner 9187 | -7/Data Miner | Learned location of Section 7 (-2) 9187 | -7/Data Miner | Acquired the access code to Warlord's prototype stash 9191 | -7/Data Miner | Received God Mode back door access code from Data Miner 9203 | -7/Data Miner | Destroyed Data Miner 9208 | -7/Data Miner | Found Quantum Router 9210 | -7/Data Miner | Found Deep Network Scanner 9211 | -7/Data Miner | Found System Mapper 9213 | -7/Data Miner | Found Ghost Barrier 9217 | -7/Data Miner | Data Conduit disabled 9241 | -7/Data Miner | Identified exit to Proximity Caves 9241 | -7/Data Miner | Entered Proximity Caves 9274 | -6/Proximity Caves | Found Alien Artifact 9274 | -6/Proximity Caves | Identified Core Expander 9274 | -6/Proximity Caves | Installed Core Expander, added new Propulsion slot 9284 | -6/Proximity Caves | Learned Factory emergency access door positions 9325 | -6/Proximity Caves | Learned location of 1 exit from Factory 9333 | -6/Proximity Caves | Discovered exit to Factory (range 13) 9340 | -6/Proximity Caves | Entered Factory 9340 | -6/Factory | Evolved 2 slots: Utility x2 9341 | -6/Factory | Identified exit to Factory 9376 | -6/Factory | Found Prototype Processor 9376 | -6/Factory | Identified Exp. Signal Interpreter 9384 | -6/Factory | Identified exit to Lower Caves 9384 | -6/Factory | Identified exit to Extension 9450 | -6/Factory | Fabricated Adv. Hacking Suite (x1) 9478 | -6/Factory | Fabricated Adv. Hacking Suite (x1) 9499 | -6/Factory | Build established: Wizard-Sprinter 9520 | -6/Factory | Fabricated Mni. Smartbomb Launcher (x1) 9563 | -6/Factory | Fabricated Plasma Sword (x1) 9791 | -6/Factory | Repaired Imp. Light Armor Plating 9941 | -6/Factory | Local fabrication network quarantined 10474 | -6/Factory | Discovered exit to Factory (range 11) 10582 | -6/Factory | Repaired Lgt. Fission Core 10623 | -6/Factory | Repaired Exp. Sensor Array 10780 | -6/Factory | Discovered exit to Factory (range 15) 10898 | -6/Factory | Spotted B-75 Beast 11032 | -6/Factory | Entered Lower Caves 11182 | -6/Lower Caves | Discovered new exit (range 7) 11182 | -6/Lower Caves | Spotted 0N-QMK(f) 11183 | -6/Lower Caves | Identified exit to Lower Caves 11183 | -6/Lower Caves | Entered another Lower Caves area 11297 | -6/Lower Caves | Discovered new exit (range 9) 11301 | -6/Lower Caves | Identified exit to Zion 11304 | -6/Lower Caves | Entered Zion 11394 | -6/Zion | Gained Derelict followers 11416 | -6/Zion | Acquired unknown access codes intercepted by a Zionite 11454 | -6/Zion | Discovered new exit (range 8) 11574 | -6/Zion | Identified exit to Proximity Caves 11574 | -6/Zion | Entered Proximity Caves 11574 | -5/Proximity Caves | Accompanied by 3 allies 11597 | -5/Proximity Caves | Spotted B-75 Beast 11606 | -5/Proximity Caves | Learned location of Armory (-3) 11877 | -5/Proximity Caves | Discovered exit to Factory (range 10) 11880 | -5/Proximity Caves | Entered Factory 11880 | -5/Factory | Evolved 2 slots: Utility x2 11941 | -5/Factory | Identified exit to Upper Caves 11982 | -5/Factory | Discovered new exit (range 6) 11986 | -5/Factory | Identified exit to Factory 12007 | -5/Factory | Fabricated Mni. Fusion Reactor? 12037 | -5/Factory | Central database locked down 12055 | -5/Factory | Fabricated Mni. Fusion Reactor? 12074 | -5/Factory | Fabricated Exp. Cesium-ion Thruster (x1) 12130 | -5/Factory | Repaired Imp. Utility Shielding 12183 | -5/Factory | Repaired Imp. Flight Unit 12367 | -5/Factory | Discovered exit to Factory (range 9) 12522 | -5/Factory | Repaired Mni. Fusion Reactor 12540 | -5/Factory | Repaired Imp. Flight Unit 12782 | -5/Factory | Local fabrication network quarantined 12801 | -5/Factory | Fabricated Exp. Cesium-ion Thruster (x1) 13160 | -5/Factory | Repaired Exp. Cesium-ion Thruster 13255 | -5/Factory | Entered Upper Caves 13288 | -5/Upper Caves | Learned 8 Factory zone layouts 13288 | -5/Upper Caves | Learned Extension garrison access intel 13307 | -5/Upper Caves | Discovered new exit (range 6) 13308 | -5/Upper Caves | Identified exit to Upper Caves 13332 | -5/Upper Caves | Entered another Upper Caves area 13334 | -5/Upper Caves | Discovered exit to Factory (range 5) 13338 | -5/Upper Caves | Learned Factory terminal intel 13339 | -5/Upper Caves | Learned 12 Factory zone layouts 13340 | -5/Upper Caves | Learned 4 Factory zone layouts 13358 | -5/Upper Caves | Spotted B-75 Beast 13427 | -5/Upper Caves | Discovered new exit (range 9) 13433 | -5/Upper Caves | Identified exit to Warlord 13433 | -5/Upper Caves | Entered Warlord 13500 | -5/Warlord | Found System Mapper 13507 | -5/Warlord | Found Prototype Device 13507 | -5/Warlord | Identified System Purifier 13512 | -5/Warlord | Found Prototype Device 13512 | -5/Warlord | Identified Exp. Cloaking Device 13518 | -5/Warlord | Found Prototype Processor 13564 | -5/Warlord | Received a Watcher feed algorithm from an ecstatic Tinkerer 13584 | -5/Warlord | Learned 4 Armory zone layouts 13584 | -5/Warlord | Learned Research stockpile data 13584 | -5/Warlord | Learned Testing stockpile data 13584 | -5/Warlord | Learned Factory terminal intel 13584 | -5/Warlord | Learned Armory repair station intel 13603 | -5/Warlord | Opened side exit 13608 | -5/Warlord | Discovered new exit (range 10) 13609 | -5/Warlord | Identified exit to Proximity Caves 13609 | -5/Warlord | Entered Proximity Caves 13618 | -4/Proximity Caves | Learned 4 Research zone layouts 13643 | -4/Proximity Caves | Discovered exit to Factory (range 10) 13646 | -4/Proximity Caves | Entered Factory 13646 | -4/Factory | Evolved 2 slots: Utility x2 13647 | -4/Factory | Identified exit to Research 13648 | -4/Factory | Identified exit to Upper Caves 13649 | -4/Factory | Loaded intel: 19 terminal locations 13699 | -4/Factory | Repaired Plasma Sword 13854 | -4/Factory | Central database locked down 13995 | -4/Factory | Fabricated Exp. Cesium-ion Thruster? 13996 | -4/Factory | Fabricated Exp. Utility Shielding (x1) 14042 | -4/Factory | Local fabrication network quarantined 14075 | -4/Factory | Fabricated Exp. Utility Shielding? 14319 | -4/Factory | Repaired Exp. Cesium-ion Thruster? 14597 | -4/Factory | Manually triggered Chute Trap 14597 | -4/Factory | Sucked down chute 14597 | -4/Factory | Entered Waste 14598 | -4/Waste | Joined by Warlord forces that had cleared the area 14627 | -4/Waste | Discovered new exit (range 12) 14725 | -4/Waste | Identified exit to Factory 14725 | -4/Waste | Entered Factory 14726 | -4/Factory | Loaded intel: 20 terminal locations 14957 | -4/Factory | Repaired Mni. Fusion Reactor 14993 | -4/Factory | Identified Exp. Target Analyzer 15099 | -4/Factory | Fabricated Imp. Fusion Compressor? 15138 | -4/Factory | Repaired Exp. Cesium-ion Thruster 15421 | -4/Factory | Fabricated Imp. Fusion Compressor? 15546 | -4/Factory | Fabricated Plasma Lance? 15640 | -4/Factory | Repaired Exp. Cesium-ion Thruster 15686 | -4/Factory | Repaired Exp. Cesium-ion Thruster 15775 | -4/Factory | Fabricated Inertial Stasis Machine (x1) 15812 | -4/Factory | Discovered exit to Research (range 15) 15927 | -4/Factory | Local fabrication network quarantined 15997 | -4/Factory | Spotted B-86 Titan 16176 | -4/Factory | Discovered exit to Research (range 9) 16239 | -4/Factory | Entered Upper Caves 16278 | -4/Upper Caves | Learned 4 Research zone layouts 16298 | -4/Upper Caves | Learned location of Testing (-2) 16308 | -4/Upper Caves | Discovered new exit (range 4) 16309 | -4/Upper Caves | Encountered a Warlord checkpoint 16309 | -4/Upper Caves | Identified exit to Upper Caves 16309 | -4/Upper Caves | Entered another Upper Caves area 16350 | -4/Upper Caves | Spotted PQ-P6N(f) 16351 | -4/Upper Caves | Encountered a Master Thief 16402 | -4/Upper Caves | Destroyed PQ-P6N(f) 16423 | -4/Upper Caves | Spotted DM-V7B(f) 16425 | -4/Upper Caves | Encountered a Master Thief 16463 | -4/Upper Caves | Discovered new exit (range 7) 16464 | -4/Upper Caves | Identified exit to Zhirov 16471 | -4/Upper Caves | Entered Zhirov 16473 | -4/Zhirov | Discovered new exit (range 3) 16482 | -4/Zhirov | Learned location of Quarantine (-3) 16482 | -4/Zhirov | Learned location of Command (-1) 16490 | -4/Zhirov | Found Alien Artifact 16490 | -4/Zhirov | Identified Integrated Reactor 16490 | -4/Zhirov | Installed Integrated Reactor, increased core energy generation (+2%) 16502 | -4/Zhirov | Found Alien Artifact 16521 | -4/Zhirov | Identified exit to Proximity Caves 16521 | -4/Zhirov | Entered Proximity Caves 16775 | -3/Proximity Caves | Discovered exit to Research (range 10) 16777 | -3/Proximity Caves | Entered Research 16777 | -3/Research | Evolved 2 slots: Utility x2 16778 | -3/Research | Identified exit to Armory 16920 | -3/Research | Identified exit to Quarantine 16943 | -3/Research | Found Enh. Force Lance 17013 | -3/Research | Fabricated Femtoactuators (x1) 17041 | -3/Research | Fabricated Dimensional Manipulator? 17046 | -3/Research | Fabricated Adv. Powered Armor (x1) 17164 | -3/Research | Fabricated Plasma Lance (x1) 17292 | -3/Research | Repaired Mni. Fusion Reactor 17467 | -3/Research | Local fabrication network quarantined 17476 | -3/Research | Entered Quarantine 17479 | -3/Quarantine | Identified exit to Research 17944 | -3/Quarantine | Found Alien Artifact 18122 | -3/Quarantine | Identified Transdimensional Reconstructor 18122 | -3/Quarantine | Identified Subatomic Replicator 18360 | -3/Quarantine | Found Alien Artifact 18360 | -3/Quarantine | Identified Matter Drive 18450 | -3/Quarantine | Found Alien Slashing Weapon 18512 | -3/Quarantine | Found Alien Artifact 18514 | -3/Quarantine | Entered Research 18514 | -2/Research | Evolved 2 slots: Utility x2 18673 | -2/Research | Found Prototype Device 18673 | -2/Research | Identified Exp. Thermal Shield 18752 | -2/Research | Identified exit to Testing 18755 | -2/Research | Spotted B-90 Cyclops 18845 | -2/Research | Identified Core Reset Matrix 18845 | -2/Research | Identified Sigix Broadsword 18860 | -2/Research | Spotted B-90 Cyclops 18964 | -2/Research | Fabricated Dimensional Manipulator? 19013 | -2/Research | Local fabrication network quarantined 19027 | -2/Research | Fabricated Exp. Q-thruster? 19540 | -2/Research | Discovered new exit (range 15) 19701 | -2/Research | Discovered new exit (range 5) 19707 | -2/Research | Identified exit to Access 19707 | -2/Research | Entered Access 19707 | -1/Access | Evolved 2 slots: Power x1, Propulsion x1 19709 | -1/Access | Energy Cycler disabled 19769 | -1/Access | Fabricated Imp. Particle Accelerator (x1) 19806 | -1/Access | Fabricated Adv. Particle Accelerator (x1) 19902 | -1/Access | Identified exit to Surface 20333 | -1/Access | Used Core Reset Matrix 20337 | *** | Heading to fleet! Last Messages --------------- 20136_ K-01 Serf collects debris. 20139_ U-05 Engineer lays Concrete. 20197_ P-80 Master destroyed. 20198_ P-80 Master suffers critical hit. 20198_ P-80 Master destroyed. 20208_ >> REPORT: Fabrication network allocation +719, current total at 921. 20242_ K-01 Serf collects debris. 20266_ W-44 Eye destroyed. 20268_ K-01 Serf collects debris. 20278_ U-05 Engineer builds a Wall. 20284_ R-10 Processor collects Adv. Remote Datajack. 20287_ R-10 Processor collects Adv. Heat Sink. 20323_ U-05 Engineer builds a Wall. 20326_ G-73 Enforcer destroyed. 20331_ K-01 Serf cleans the Terminal. 20331_ Connecting with Terminal... 20332_ The Access Shell folds into the floor. 20333_ Wiping memory... 20334_ CORE RESET Map ----- +----------------------------------------------------+ | ?????????????????????????????????????????????????? | | ?????????????????????????????????????????????????? | | ?????????????????????????????????????????????????? | | ?????????????????????????????????????????????????? | | ?????????????????????????????????????????????????? | | ?????????????????????????????????????????????????? | | ??????????????????????????????????????o??????????? | | ????????????R????????????????????????????????????? | | ?????????????????????????????????????????????????? | | ???????????????????????????????????u?????????????? | | ?????????????????????????????????????????????????? | | ???????????????????u?A???u???????????????????????? | | ??????????????A??????????????????????????????????? | | ?????????????????????????????????????????????????? | | ?????????????????????????????????????????????????? | | ?????????????????????????????????????????????????? | | ?????????????????????????????????????????????????? | | ?????????????????????????????????????????????????? | | ???????????????????##????????????????????????????? | | ????????????????#### ##########??????????????????? | | ??????????????""T""" "??????????????????? | | ??????????# """ """ "????BB????????????? | | ??????????# k "????BB????????????? | | ??????????# "??????????????????? | | ??????????# "" "??????????????????? | | ??????????# k @" "??????????????????? | | ??????????# u "??????????????????? | | ??????????# "????BB????????????? | | ??????????#u "????BB????????????? | | ??????????# k "??????????????????? | | ??????????? C####### ##########??????????????????? | | ???????????????????##????????????????????????????? | | ???????????k?????????????????????????????????????? | | ?????????????????????????????????????????????????? | | ?????????????????????????????????????????????????? | | ?????????????????????????????????????????????????? | | ??????????????R??????????????????????????????????? | | ?????????????????????????????????????????????????? | | ?????????????????????????????????????????????????? | | ?????????????????????????????????????????????????? | | ?????????????????????????????????????????????????? | | ?????????????????????????????????????????????????? | | ?????????????????????????????????????????????????? | | ?????????????????????????????????????????????????? | | ???????????????????????????????????k?????????????? | | ?????????????????????????????????????????????????? | | ?????????????????????????????????????????????????? | | ??????????????????????u??u???k?????????????hh????? | | ???????????Y???????????????????????ss?s??????????? | | ??????????????????????????????????????s??????????? | +----------------------------------------------------+ Best States ------------- Heat Dissipation 59 Energy Generation 59 Energy Capacity 930 Matter Stores 300 Matter Capacity 300 Sight Range 16 Robot Scan Range 30 Terrain Scan Density 10 Jamming Range 16 Additional Mass Support 50 Armor Coverage 450 Utility Shielding 90 Melee Speed Boost 50 Evasion (%) 76 Targeting Accuracy 6 Melee Accuracy 8 Recoil Reduction 2 Offensive Hacking 103 Defensive Hacking 45 Item Schematics ----------------- None Robot Schematics ------------------ None Fabricated ------------ Imp. Flight Unit | x1 | -7/Factory Imp. Flight Unit | x1 | -7/Factory Adv. Hacking Suite | x1 | -6/Factory Adv. Hacking Suite | x1 | -6/Factory Mni. Smartbomb Launcher | x1 | -6/Factory Plasma Sword | x1 | -6/Factory Mni. Fusion Reactor | x1 | -5/Factory Mni. Fusion Reactor | x1 | -5/Factory Exp. Cesium-ion Thruster | x1 | -5/Factory Exp. Cesium-ion Thruster | x1 | -5/Factory Exp. Cesium-ion Thruster | x1 | -4/Factory Exp. Utility Shielding | x1 | -4/Factory Exp. Utility Shielding | x1 | -4/Factory Imp. Fusion Compressor | x1 | -4/Factory Imp. Fusion Compressor | x1 | -4/Factory Plasma Lance | x1 | -4/Factory Inertial Stasis Machine | x1 | -4/Factory Femtoactuators | x1 | -3/Research Dimensional Manipulator | x1 | -3/Research Adv. Powered Armor | x1 | -3/Research Plasma Lance | x1 | -3/Research Dimensional Manipulator | x1 | -2/Research Exp. Q-thruster | x1 | -2/Research Imp. Particle Accelerator | x1 | -1/Access Adv. Particle Accelerator | x1 | -1/Access Alien Tech Used ----------------- Core Expander Integrated Reactor Matter Drive Core Reset Matrix Achievements -------------- None Challenges ------------ None Game ------ Seed MassHeavyBroadsword Manual? 0 Play Time 03:56:46 Cumulative 799.7 hours Start 2020.04.26 @ 10:39:27 End 2020.04.26 @ 21:39:52 Sessions 5 Manual Loads 0 Difficulty Rogue Special Mode None Game No. 678 Rogue 638 Adventurer 40 Explorer 0 Win Type 2 Total 77 Types 52/2/17/2/0/2/2 Lore% 93 Gallery% 96 Achievement% 78 Wizard Run 0 Options --------- ASCII 0 Keyboard 0 Movement Numpad Keybinds 0 Fullscreen 0 Font 16/Terminus Map View 76x50 Tactical HUD 1 Map Filters NONE Filters NONE Steam 1 RUN: abd2c361-0099-4a42-abc6-500c6129623b